[Event "Swedish Chess Championship 2019: Kadett-SM"]
[Site "Stiga Sports Arena, Arenatorget 1, Eskilstuna, Sweden, Sweden"]
[Date "2019.07.09"]
[Round "2.6"]
[White "Lindholm, Gustav"]
[Black "Nord, Gabriel"]
[Result "1-0"]
[TimeControl "90 minutes for 40 moves + 30 minutes for the rest of the game + 30 seconds per move from move one"]
[WhiteFideId "1736515"]
[BlackFideId "1740660"]
[WhiteElo "1950"]
[BlackElo "1792"]

1. d4 {[%clk 01:30:58]} {[%emt 00:00:02]} d5 {[%clk 01:30:52]} {[%emt
00:00:08]} 2. c4 {[%clk 01:31:18]} {[%emt 00:00:08]} e6 {[%clk 01:31:15]}
{[%emt 00:00:08]} 3. Nc3 {[%clk 01:31:33]} {[%emt 00:00:14]} Nf6 {[%clk
01:31:42]} {[%emt 00:00:04]} 4. Bg5 {[%clk 01:31:50]} {[%emt 00:00:12]} Be7
{[%clk 01:32:06]} {[%emt 00:00:07]} 5. Nf3 {[%clk 01:31:57]} {[%emt 00:00:22]}
Nbd7 {[%clk 01:32:04]} {[%emt 00:00:32]} 6. e3 {[%clk 01:32:03]} {[%emt
00:00:23]} b6 {[%clk 01:30:58]} {[%emt 00:01:37]} 7. cxd5 {[%clk 01:31:14]}
{[%emt 00:01:19]} Nxd5 {[%clk 01:28:06]} {[%emt 00:03:23]} 8. Nxd5 {[%clk
01:26:53]} {[%emt 00:04:50]} exd5 {[%clk 01:28:17]} {[%emt 00:00:20]} 9. Bxe7
{[%clk 01:24:02]} {[%emt 00:03:20]} Qxe7 {[%clk 01:28:40]} {[%emt 00:00:07]} 10.
Qb3 {[%clk 01:23:32]} {[%emt 00:01:00]} Bb7 {[%clk 01:25:59]} {[%emt 00:03:11]}
11. Rc1 {[%clk 01:22:45]} {[%emt 00:01:16]} c6 {[%clk 01:24:14]} {[%emt
00:02:16]} 12. Bd3 {[%clk 01:21:13]} {[%emt 00:02:02]} O-O {[%clk 01:21:29]}
{[%emt 00:03:16]} 13. O-O {[%clk 01:18:13]} {[%emt 00:03:29]} f5 {[%clk
01:08:27]} {[%emt 00:13:33]} 14. Rfe1 {[%clk 01:14:36]} {[%emt 00:04:06]} Kh8
{[%clk 01:06:30]} {[%emt 00:02:27]} 15. a4 {[%clk 01:11:30]} {[%emt 00:03:36]}
a5 {[%clk 01:00:17]} {[%emt 00:06:43]} 16. Re2 {[%clk 01:06:08]} {[%emt
00:05:51]} Rab8 {[%clk 00:53:02]} {[%emt 00:07:46]} 17. Qc2 {[%clk 00:49:35]}
{[%emt 00:17:03]} Qf6 {[%clk 00:52:34]} {[%emt 00:00:59]} 18. Qd2 {[%clk
00:45:20]} {[%emt 00:04:44]} g5 {[%clk 00:42:51]} {[%emt 00:10:13]} 19. g3
{[%clk 00:35:18]} {[%emt 00:10:32]} h6 {[%clk 00:35:01]} {[%emt 00:08:20]} 20.
Ree1 {[%clk 00:33:43]} {[%emt 00:02:06]} Qe7 {[%clk 00:29:44]} {[%emt
00:05:47]} 21. Rb1 {[%clk 00:26:52]} {[%emt 00:07:22]} c5 {[%clk 00:23:30]}
{[%emt 00:06:44]} 22. dxc5 {[%clk 00:20:44]} {[%emt 00:06:37]} Nxc5 {[%clk
00:23:31]} {[%emt 00:00:29]} 23. Nd4 {[%clk 00:19:26]} {[%emt 00:01:48]} Nxd3
{[%clk 00:20:19]} {[%emt 00:03:43]} 24. Qxd3 {[%clk 00:19:46]} {[%emt
00:00:10]} Qd7 {[%clk 00:19:07]} {[%emt 00:01:42]} 25. Nb5 {[%clk 00:18:48]}
{[%emt 00:01:27]} Ba6 {[%clk 00:17:23]} {[%emt 00:02:15]} 26. Qd4+ {[%clk
00:18:29]} {[%emt 00:00:48]} Kh7 {[%clk 00:17:17]} {[%emt 00:00:36]} 27. Nc3
{[%clk 00:18:16]} {[%emt 00:00:42]} Rfd8 {[%clk 00:13:45]} {[%emt 00:04:02]} 28.
Rbd1 {[%clk 00:18:05]} {[%emt 00:00:41]} Bc4 {[%clk 00:13:24]} {[%emt
00:00:51]} 29. e4 {[%clk 00:14:59]} {[%emt 00:03:35]} Bb3 {[%clk 00:13:23]}
{[%emt 00:00:32]} 30. Rd3 {[%clk 00:11:36]} {[%emt 00:03:53]} Qe6 {[%clk
00:13:00]} {[%emt 00:00:53]} 31. e5 {[%clk 00:06:58]} {[%emt 00:05:09]} Rbc8
{[%clk 00:12:22]} {[%emt 00:01:08]} 32. Qe3 {[%clk 00:05:37]} {[%emt 00:01:51]}
Bc4 {[%clk 00:11:28]} {[%emt 00:01:24]} 33. Rd4 {[%clk 00:05:46]} {[%emt
00:00:21]} Rc5 {[%clk 00:14:04]} {[%emt 00:01:47]} 34. Kg2 {[%clk 00:04:22]}
{[%emt 00:01:53]} Rdc8 {[%clk 00:07:04]} {[%emt 00:03:38]} 35. h4 {[%clk
00:03:24]} {[%emt 00:01:28]} g4 {[%clk 00:05:42]} {[%emt 00:01:53]} 36. Red1
{[%clk 00:02:37]} {[%emt 00:01:17]} Rd8 {[%clk 00:04:24]} {[%emt 00:01:48]} 37.
Qf4 {[%clk 00:01:35]} {[%emt 00:01:31]} Ba6 {[%clk 00:04:15]} {[%emt 00:00:40]}
38. Qe3 {[%clk 00:01:31]} {[%emt 00:00:34]} Rc4 {[%clk 00:02:51]} {[%emt
00:01:55]} 39. Kg1 {[%clk 00:00:58]} {[%emt 00:01:03]} Rc5 {[%clk 00:02:04]}
{[%emt 00:01:18]} 40. Qf4 {[%clk 00:00:41]} {[%emt 00:00:47]} Kg6 {[%clk
00:00:50]} {[%emt 00:01:43]} 41. R1d2 {[%clk 00:00:34]} {[%emt 00:00:37]} Bb7
{[%clk 00:30:14]} {[%emt 00:01:07]} 42. Nb5 {[%clk 00:28:50]} {[%emt 00:02:14]}
Re8 {[%clk 00:28:18]} {[%emt 00:02:26]} 43. Nd6 {[%clk 00:25:33]} {[%emt
00:03:47]} Re7 {[%clk 00:28:35]} {[%emt 00:00:13]} 44. Nxf5 {[%clk 00:23:33]}
{[%emt 00:02:31]} Qxf5 {[%clk 00:27:22]} {[%emt 00:01:44]} 45. h5+ {[%clk
00:23:52]} {[%emt 00:00:10]} Qxh5 {[%clk 00:27:10]} {[%emt 00:00:42]} 46. Qf6+
{[%clk 00:24:13]} {[%emt 00:00:08]} Kh7 {[%clk 00:27:33]} {[%emt 00:00:07]} 47.
Qxe7+ {[%clk 00:24:33]} {[%emt 00:00:09]} Kg8 {[%clk 00:27:11]} {[%emt
00:00:52]} 48. Qxb7 {[%clk 00:24:25]} {[%emt 00:00:38]} Qxe5 {[%clk 00:26:18]}
{[%emt 00:01:24]} 49. Rd1 {[%clk 00:23:23]} {[%emt 00:01:32]} Rc2 {[%clk
00:25:24]} {[%emt 00:01:24]} 50. Rxd5 {[%clk 00:23:24]} {[%emt 00:00:29]} 1-0

[Event "Swedish Chess Championship 2019: Kadett-SM"]
[Site "Stiga Sports Arena, Arenatorget 1, Eskilstuna, Sweden, Sweden"]
[Date "2019.07.09"]
[Round "3.1"]
[White "Lindholm, Gustav"]
[Black "Dingertz, Erik"]
[Result "0-1"]
[TimeControl "90 minutes for 40 moves + 30 minutes for the rest of the game + 30 seconds per move from move one"]
[WhiteFideId "1736515"]
[BlackFideId "1741578"]
[WhiteElo "1950"]
[BlackElo "1959"]

1. d4 {[%clk 01:30:50]} {[%emt 00:00:09]} Nf6 {[%clk 01:29:06]} {[%emt
00:01:55]} 2. c4 {[%clk 01:31:12]} {[%emt 00:00:08]} e6 {[%clk 01:29:20]}
{[%emt 00:00:16]} 3. Nc3 {[%clk 01:31:35]} {[%emt 00:00:07]} Bb4 {[%clk
01:29:37]} {[%emt 00:00:13]} 4. Qc2 {[%clk 01:31:55]} {[%emt 00:00:09]} O-O
{[%clk 01:29:56]} {[%emt 00:00:12]} 5. a3 {[%clk 01:32:19]} {[%emt 00:00:07]}
Bxc3+ {[%clk 01:30:21]} {[%emt 00:00:05]} 6. Qxc3 {[%clk 01:32:43]} {[%emt
00:00:05]} d5 {[%clk 01:30:46]} {[%emt 00:00:05]} 7. Bg5 {[%clk 01:32:43]}
{[%emt 00:00:30]} dxc4 {[%clk 01:30:27]} {[%emt 00:00:51]} 8. Qxc4 {[%clk
01:32:56]} {[%emt 00:00:16]} b6 {[%clk 01:30:52]} {[%emt 00:00:05]} 9. Nf3
{[%clk 01:32:27]} {[%emt 00:00:58]} Ba6 {[%clk 01:29:18]} {[%emt 00:02:05]} 10.
Qc2 {[%clk 01:30:59]} {[%emt 00:01:58]} Nbd7 {[%clk 01:29:12]} {[%emt
00:00:36]} 11. g3 {[%clk 01:30:23]} {[%emt 00:01:07]} c5 {[%clk 01:28:38]}
{[%emt 00:01:04]} 12. dxc5 {[%clk 01:25:05]} {[%emt 00:05:48]} Rc8 {[%clk
01:17:53]} {[%emt 00:11:15]} 13. Rd1 {[%clk 01:15:26]} {[%emt 00:10:09]} Rxc5
{[%clk 01:16:32]} {[%emt 00:01:51]} 14. Qa4 {[%clk 01:11:05]} {[%emt 00:04:50]}
Qc8 {[%clk 01:16:56]} {[%emt 00:00:06]} 15. Bd2 {[%clk 01:07:01]} {[%emt
00:04:34]} Rc4 {[%clk 01:10:53]} {[%emt 00:06:33]} 16. Qb3 {[%clk 01:04:10]}
{[%emt 00:03:22]} Nc5 {[%clk 01:07:14]} {[%emt 00:04:09]} 17. Qa2 {[%clk
01:03:13]} {[%emt 00:01:27]} Nce4 {[%clk 01:07:10]} {[%emt 00:00:33]} 18. e3
{[%clk 00:52:52]} {[%emt 00:10:52]} Nxd2 {[%clk 01:02:32]} {[%emt 00:05:07]} 19.
Nxd2 {[%clk 00:51:48]} {[%emt 00:01:33]} Rc2 {[%clk 01:02:36]} {[%emt
00:00:25]} 20. Qb1 {[%clk 00:46:52]} {[%emt 00:05:28]} Bxf1 {[%clk 01:01:38]}
{[%emt 00:01:28]} 21. Rxf1 {[%clk 00:40:47]} {[%emt 00:06:36]} Rd8 {[%clk
01:00:11]} {[%emt 00:01:56]} 22. f3 {[%clk 00:32:49]} {[%emt 00:08:29]} Nd5
{[%clk 00:58:50]} {[%emt 00:01:51]} 23. Ne4 {[%clk 00:26:55]} {[%emt 00:06:25]}
Rxh2 {[%clk 00:50:19]} {[%emt 00:09:01]} 24. Rf2 {[%clk 00:22:06]} {[%emt
00:05:18]} Rh1+ {[%clk 00:50:33]} {[%emt 00:00:15]} 25. Ke2 {[%clk 00:21:21]}
{[%emt 00:01:16]} Nf4+ {[%clk 00:49:35]} {[%emt 00:01:25]} 26. gxf4 {[%clk
00:21:38]} {[%emt 00:00:15]} Rdxd1 {[%clk 00:50:01]} {[%emt 00:00:05]} 27. Qxd1
{[%clk 00:21:54]} {[%emt 00:00:14]} Rxd1 {[%clk 00:50:25]} {[%emt 00:00:06]} 28.
Kxd1 {[%clk 00:22:16]} {[%emt 00:00:08]} h5 {[%clk 00:49:57]} {[%emt 00:00:57]}
29. Rh2 {[%clk 00:21:53]} {[%emt 00:00:54]} Qd7+ {[%clk 00:50:16]} {[%emt
00:00:09]} 30. Rd2 {[%clk 00:21:59]} {[%emt 00:00:26]} Qb5 {[%clk 00:50:23]}
{[%emt 00:00:19]} 31. Ke1 {[%clk 00:21:48]} {[%emt 00:00:43]} Kf8 {[%clk
00:48:57]} {[%emt 00:01:54]} 32. Rc2 {[%clk 00:19:06]} {[%emt 00:03:11]} Qb3
{[%clk 00:46:29]} {[%emt 00:02:55]} 33. Re2 {[%clk 00:18:55]} {[%emt 00:00:47]}
Ke7 {[%clk 00:45:31]} {[%emt 00:01:25]} 34. Kf2 {[%clk 00:18:11]} {[%emt
00:01:18]} Qd1 {[%clk 00:45:08]} {[%emt 00:00:50]} 35. Ng3 {[%clk 00:16:55]}
{[%emt 00:01:49]} Qc1 {[%clk 00:44:54]} {[%emt 00:00:41]} 36. Nxh5 {[%clk
00:08:58]} {[%emt 00:08:30]} Qh1 {[%clk 00:45:03]} {[%emt 00:00:20]} 37. Nxg7
{[%clk 00:09:14]} {[%emt 00:00:15]} Qh7 {[%clk 00:45:20]} {[%emt 00:00:12]} 38.
Nxe6 {[%clk 00:09:15]} {[%emt 00:00:31]} fxe6 {[%clk 00:45:43]} {[%emt
00:00:07]} 39. Rd2 {[%clk 00:08:39]} {[%emt 00:01:07]} Qh2+ {[%clk 00:45:52]}
{[%emt 00:00:20]} 40. Ke1 {[%clk 00:09:00]} {[%emt 00:00:10]} Qg1+ {[%clk
00:46:19]} {[%emt 00:00:03]} 41. Ke2 {[%clk 00:09:09]} {[%emt 00:00:21]} Qg2+
{[%clk 00:46:45]} {[%emt 00:00:03]} 42. Kd3 {[%clk 00:08:04]} {[%emt 00:01:34]}
Qxf3 {[%clk 00:47:10]} {[%emt 00:00:06]} 43. Rc2 {[%clk 00:05:33]} {[%emt
00:03:01]} Kd6 {[%clk 00:46:54]} {[%emt 00:00:45]} 44. Rc3 {[%clk 00:05:27]}
{[%emt 00:00:36]} Qd1+ {[%clk 00:46:14]} {[%emt 00:01:10]} 45. Kc4 {[%clk
00:05:07]} {[%emt 00:00:51]} Qd5+ {[%clk 00:46:31]} {[%emt 00:00:12]} 46. Kb4
{[%clk 00:05:06]} {[%emt 00:00:33]} a5+ {[%clk 00:46:42]} {[%emt 00:00:18]} 47.
Ka4 {[%clk 00:05:11]} {[%emt 00:00:25]} Ke7 {[%clk 00:46:10]} {[%emt 00:00:59]}
48. Rc7+ {[%clk 00:05:02]} {[%emt 00:00:41]} Kf6 {[%clk 00:46:21]} {[%emt
00:00:17]} 49. Rc3 {[%clk 00:04:06]} {[%emt 00:01:28]} Kf5 {[%clk 00:46:00]}
{[%emt 00:00:50]} 50. b4 {[%clk 00:03:25]} {[%emt 00:01:11]} Ke4 {[%clk
00:45:40]} {[%emt 00:00:49]} 51. f5 {[%clk 00:00:57]} {[%emt 00:03:00]} exf5
{[%clk 00:45:35]} {[%emt 00:00:35]} 52. Rc4 {[%clk 00:01:09]} {[%emt 00:00:18]}
Kxe3 {[%clk 00:45:46]} {[%emt 00:00:18]} 0-1

[Event "Swedish Chess Championship 2019: Kadett-SM"]
[Site "Stiga Sports Arena, Arenatorget 1, Eskilstuna, Sweden, Sweden"]
[Date "2019.07.09"]
[Round "3.2"]
[White "Mitra, Akash"]
[Black "Joensson, Oscar"]
[Result "0-1"]
[TimeControl "90 minutes for 40 moves + 30 minutes for the rest of the game + 30 seconds per move from move one"]
[WhiteFideId "1726714"]
[BlackFideId "1729977"]
[WhiteElo "1957"]
[BlackElo "1752"]

1. d4 {[%clk 01:30:02]} {[%emt 00:00:56]} Nf6 {[%clk 01:30:20]} {[%emt
00:00:42]} 2. Bf4 {[%clk 01:30:22]} {[%emt 00:00:09]} d5 {[%clk 01:29:59]}
{[%emt 00:00:51]} 3. e3 {[%clk 01:25:17]} {[%emt 00:05:35]} c5 {[%clk
01:28:51]} {[%emt 00:01:39]} 4. Nd2 {[%clk 01:24:23]} {[%emt 00:01:24]} Nc6
{[%clk 01:28:11]} {[%emt 00:01:10]} 5. c3 {[%clk 01:24:15]} {[%emt 00:00:38]}
Bf5 {[%clk 01:25:53]} {[%emt 00:02:48]} 6. Ngf3 {[%clk 01:24:34]} {[%emt
00:00:11]} e6 {[%clk 01:26:00]} {[%emt 00:00:24]} 7. Ne5 {[%clk 01:22:53]}
{[%emt 00:02:10]} Be7 {[%clk 01:24:53]} {[%emt 00:01:38]} 8. Be2 {[%clk
01:21:53]} {[%emt 00:01:28]} h6 {[%clk 01:11:56]} {[%emt 00:13:28]} 9. g4
{[%clk 01:16:33]} {[%emt 00:05:50]} Bh7 {[%clk 01:09:24]} {[%emt 00:03:02]} 10.
Bg3 {[%clk 00:59:45]} {[%emt 00:17:17]} Qb6 {[%clk 01:06:49]} {[%emt 00:03:06]}
11. Qb3 {[%clk 00:59:16]} {[%emt 00:00:59]} c4 {[%clk 01:05:40]} {[%emt
00:01:39]} 12. Qxb6 {[%clk 00:58:55]} {[%emt 00:00:52]} axb6 {[%clk 01:06:04]}
{[%emt 00:00:06]} 13. O-O {[%clk 00:58:15]} {[%emt 00:01:09]} O-O {[%clk
01:00:47]} {[%emt 00:05:48]} 14. f4 {[%clk 00:57:17]} {[%emt 00:01:28]} Nxe5
{[%clk 01:00:43]} {[%emt 00:00:33]} 15. fxe5 {[%clk 00:53:55]} {[%emt
00:03:53]} Ne4 {[%clk 01:00:31]} {[%emt 00:00:41]} 16. Nxe4 {[%clk 00:54:03]}
{[%emt 00:00:22]} Bxe4 {[%clk 01:00:55]} {[%emt 00:00:07]} 17. Bf3 {[%clk
00:53:15]} {[%emt 00:01:17]} Bd3 {[%clk 00:58:19]} {[%emt 00:03:06]} 18. Rf2
{[%clk 00:43:31]} {[%emt 00:10:15]} b5 {[%clk 00:57:42]} {[%emt 00:01:08]} 19.
Bd1 {[%clk 00:36:37]} {[%emt 00:07:19]} b4 {[%clk 00:46:51]} {[%emt 00:11:26]}
20. cxb4 {[%clk 00:35:06]} {[%emt 00:02:01]} Bxb4 {[%clk 00:43:39]} {[%emt
00:03:41]} 21. Bc2 {[%clk 00:34:45]} {[%emt 00:00:50]} Rfc8 {[%clk 00:41:32]}
{[%emt 00:02:38]} 22. a3 {[%clk 00:30:31]} {[%emt 00:04:45]} Ba5 {[%clk
00:31:40]} {[%emt 00:10:20]} 23. Rd1 {[%clk 00:27:50]} {[%emt 00:03:11]} Bxc2
{[%clk 00:31:25]} {[%emt 00:00:46]} 24. Rxc2 {[%clk 00:28:12]} {[%emt
00:00:08]} b5 {[%clk 00:31:41]} {[%emt 00:00:14]} 25. Be1 {[%clk 00:28:05]}
{[%emt 00:00:37]} Bxe1 {[%clk 00:31:02]} {[%emt 00:01:09]} 26. Rxe1 {[%clk
00:28:27]} {[%emt 00:00:08]} b4 {[%clk 00:31:19]} {[%emt 00:00:14]} 27. axb4
{[%clk 00:28:38]} {[%emt 00:00:20]} Rcb8 {[%clk 00:28:36]} {[%emt 00:03:11]} 28.
e4 {[%clk 00:25:17]} {[%emt 00:03:51]} Rxb4 {[%clk 00:28:24]} {[%emt 00:00:43]}
29. exd5 {[%clk 00:25:35]} {[%emt 00:00:12]} exd5 {[%clk 00:27:12]} {[%emt
00:01:42]} 30. Kg2 {[%clk 00:22:04]} {[%emt 00:04:01]} Rb3 {[%clk 00:26:52]}
{[%emt 00:00:49]} 31. Rd2 {[%clk 00:18:48]} {[%emt 00:03:47]} Rab8 {[%clk
00:23:54]} {[%emt 00:03:27]} 32. Ree2 {[%clk 00:19:13]} {[%emt 00:00:05]} R8b6
{[%clk 00:23:31]} {[%emt 00:00:53]} 33. Rf2 {[%clk 00:18:32]} {[%emt 00:01:10]}
Rg6 {[%clk 00:20:48]} {[%emt 00:03:14]} 34. Rf4 {[%clk 00:18:19]} {[%emt
00:00:43]} h5 {[%clk 00:19:20]} {[%emt 00:01:59]} 35. h3 {[%clk 00:17:35]}
{[%emt 00:01:13]} hxg4 {[%clk 00:19:37]} {[%emt 00:00:12]} 36. hxg4 {[%clk
00:16:56]} {[%emt 00:01:09]} Rgb6 {[%clk 00:16:10]} {[%emt 00:03:57]} 37. Rff2
{[%clk 00:17:00]} {[%emt 00:00:27]} Rh6 {[%clk 00:11:54]} {[%emt 00:04:45]} 38.
Kg1 {[%clk 00:11:37]} {[%emt 00:05:51]} Rhh3 {[%clk 00:10:55]} {[%emt
00:01:31]} 39. Rg2 {[%clk 00:08:48]} {[%emt 00:03:19]} Rbd3 {[%clk 00:07:23]}
{[%emt 00:04:03]} 40. g5 {[%clk 00:01:42]} {[%emt 00:07:35]} Rhg3 {[%clk
00:05:01]} {[%emt 00:02:52]} 41. Rxg3 {[%clk 00:01:31]} {[%emt 00:00:42]} Rxd2
{[%clk 00:05:11]} {[%emt 00:00:19]} 42. b3 {[%clk 00:27:27]} {[%emt 00:04:34]}
Rxd4 {[%clk 00:34:56]} {[%emt 00:00:45]} 43. bxc4 {[%clk 00:27:50]} {[%emt
00:00:07]} dxc4 {[%clk 00:35:12]} {[%emt 00:00:14]} 44. g6 {[%clk 00:25:25]}
{[%emt 00:02:55]} Rd3 {[%clk 00:30:24]} {[%emt 00:05:17]} 45. gxf7+ {[%clk
00:25:42]} {[%emt 00:00:14]} Kxf7 {[%clk 00:30:48]} {[%emt 00:00:06]} 46. Rg4
{[%clk 00:24:31]} {[%emt 00:01:39]} c3 {[%clk 00:30:58]} {[%emt 00:00:21]} 47.
Rc4 {[%clk 00:18:23]} {[%emt 00:06:38]} Ke6 {[%clk 00:31:15]} {[%emt 00:00:13]}
48. Rc5 {[%clk 00:18:05]} {[%emt 00:00:48]} g5 {[%clk 00:31:17]} {[%emt
00:00:27]} 49. Kf2 {[%clk 00:18:13]} {[%emt 00:00:22]} g4 {[%clk 00:31:25]}
{[%emt 00:00:23]} 50. Ke2 {[%clk 00:17:35]} {[%emt 00:01:08]} Rh3 {[%clk
00:31:40]} {[%emt 00:00:15]} 51. Kf2 {[%clk 00:17:57]} {[%emt 00:00:08]} Kf5
{[%clk 00:28:24]} {[%emt 00:03:45]} 52. Rc4 {[%clk 00:12:11]} {[%emt 00:06:16]}
Rd3 {[%clk 00:07:50]} {[%emt 00:21:04]} 53. Ke2 {[%clk 00:04:11]} {[%emt
00:08:30]} g3 {[%clk 00:05:54]} {[%emt 00:02:25]} 54. Rc8 {[%clk 00:03:03]}
{[%emt 00:01:39]} g2 {[%clk 00:04:16]} {[%emt 00:02:08]} 55. Kf2 {[%clk
00:00:36]} {[%emt 00:02:56]} Rd2+ {[%clk 00:04:33]} {[%emt 00:00:12]} 56. Kg1
{[%clk 00:01:03]} {[%emt 00:00:03]} c2 {[%clk 00:04:46]} {[%emt 00:00:17]} 57.
Kh2 {[%clk 00:01:28]} {[%emt 00:00:05]} g1=Q+ {[%clk 00:05:08]} {[%emt
00:00:08]} 0-1

[Event "Swedish Chess Championship 2019: Kadett-SM"]
[Site "Stiga Sports Arena, Arenatorget 1, Eskilstuna, Sweden, Sweden"]
[Date "2019.07.09"]
[Round "3.3"]
[White "Ivarsson, Sebastian"]
[Black "Nguyen, Gabriel"]
[Result "1/2-1/2"]
[TimeControl "90 minutes for 40 moves + 30 minutes for the rest of the game + 30 seconds per move from move one"]
[WhiteFideId "1738593"]
[BlackFideId "1720791"]
[WhiteElo "2079"]
[BlackElo "2035"]

1. d4 {[%clk 01:30:55]} {[%emt 00:00:02]} f5 {[%clk 01:28:08]} {[%emt
00:02:54]} 2. g3 {[%clk 01:30:10]} {[%emt 00:01:15]} Nf6 {[%clk 01:27:32]}
{[%emt 00:01:06]} 3. Bg2 {[%clk 01:30:33]} {[%emt 00:00:07]} g6 {[%clk
01:26:39]} {[%emt 00:01:23]} 4. Nf3 {[%clk 01:29:41]} {[%emt 00:01:22]} Bg7
{[%clk 01:27:04]} {[%emt 00:00:05]} 5. O-O {[%clk 01:30:04]} {[%emt 00:00:07]}
O-O {[%clk 01:27:30]} {[%emt 00:00:04]} 6. c4 {[%clk 01:30:12]} {[%emt
00:00:22]} d6 {[%clk 01:27:47]} {[%emt 00:00:13]} 7. b3 {[%clk 01:28:36]}
{[%emt 00:02:06]} c6 {[%clk 01:27:38]} {[%emt 00:00:38]} 8. Bb2 {[%clk
01:28:31]} {[%emt 00:00:35]} Na6 {[%clk 01:25:45]} {[%emt 00:02:24]} 9. Nc3
{[%clk 01:25:12]} {[%emt 00:03:49]} Qe8 {[%clk 01:19:21]} {[%emt 00:06:52]} 10.
d5 {[%clk 01:22:10]} {[%emt 00:03:34]} Bd7 {[%clk 01:13:12]} {[%emt 00:06:39]}
11. Nd4 {[%clk 01:03:00]} {[%emt 00:19:41]} Nc7 {[%clk 01:07:40]} {[%emt
00:06:02]} 12. Qd2 {[%clk 00:53:18]} {[%emt 00:10:12]} c5 {[%clk 00:40:55]}
{[%emt 00:27:15]} 13. Ne6 {[%clk 00:52:20]} {[%emt 00:01:28]} Nxe6 {[%clk
00:40:37]} {[%emt 00:00:48]} 14. dxe6 {[%clk 00:52:45]} {[%emt 00:00:05]} Bxe6
{[%clk 00:40:58]} {[%emt 00:00:09]} 15. Bxb7 {[%clk 00:52:54]} {[%emt
00:00:20]} Bf7 {[%clk 00:36:40]} {[%emt 00:04:48]} 16. Bg2 {[%clk 00:36:43]}
{[%emt 00:16:41]} Rd8 {[%clk 00:23:52]} {[%emt 00:13:17]} 17. Rfe1 {[%clk
00:23:52]} {[%emt 00:13:22]} e5 {[%clk 00:18:40]} {[%emt 00:05:42]} 18. e4
{[%clk 00:23:22]} {[%emt 00:01:00]} f4 {[%clk 00:17:48]} {[%emt 00:01:22]} 19.
gxf4 {[%clk 00:21:41]} {[%emt 00:02:11]} Bh6 {[%clk 00:17:09]} {[%emt
00:01:09]} 20. Ne2 {[%clk 00:20:00]} {[%emt 00:02:11]} Nh5 {[%clk 00:17:03]}
{[%emt 00:00:36]} 21. Qa5 {[%clk 00:19:47]} {[%emt 00:00:43]} Nxf4 {[%clk
00:15:59]} {[%emt 00:01:34]} 22. Nxf4 {[%clk 00:19:33]} {[%emt 00:00:44]} Bxf4
{[%clk 00:16:26]} {[%emt 00:00:04]} 23. Qxa7 {[%clk 00:18:58]} {[%emt
00:01:06]} Be6 {[%clk 00:13:32]} {[%emt 00:03:23]} 24. Bc1 {[%clk 00:16:10]}
{[%emt 00:03:18]} Rd7 {[%clk 00:13:47]} {[%emt 00:00:14]} 25. Qa5 {[%clk
00:16:26]} {[%emt 00:00:13]} Qf7 {[%clk 00:13:57]} {[%emt 00:00:21]} 26. Rf1
{[%clk 00:10:57]} {[%emt 00:05:59]} g5 {[%clk 00:10:17]} {[%emt 00:04:09]} 27.
Bxf4 {[%clk 00:09:54]} {[%emt 00:01:33]} gxf4 {[%clk 00:10:42]} {[%emt
00:00:05]} 28. f3 {[%clk 00:09:41]} {[%emt 00:00:43]} Qh5 {[%clk 00:10:12]}
{[%emt 00:00:59]} 29. Kh1 {[%clk 00:09:14]} {[%emt 00:00:57]} Rf6 {[%clk
00:07:16]} {[%emt 00:03:26]} 30. Rf2 {[%clk 00:08:07]} {[%emt 00:01:37]} Rh6
{[%clk 00:04:24]} {[%emt 00:03:23]} 31. Bf1 {[%clk 00:08:33]} {[%emt 00:00:04]}
Rg6 {[%clk 00:03:17]} {[%emt 00:01:37]} 32. Qd2 {[%clk 00:07:11]} {[%emt
00:01:52]} Rdg7 {[%clk 00:03:15]} {[%emt 00:00:31]} 33. Bg2 {[%clk 00:05:52]}
{[%emt 00:01:50]} Rh6 {[%clk 00:03:36]} {[%emt 00:00:10]} 34. Bf1 {[%clk
00:06:12]} {[%emt 00:00:10]} 1/2-1/2